fUST/lending_fUST_20250109
["ID","MTS","AMOUNT","RATE_DAILY","PERIOD"]
[348177328,1736368246017,-500.0,0.00021095,3]
[348177329,1736368246026,-271.93332033,0.00021107,2]
[348177330,1736368246036,-420.0,0.00021187,2]
[348177331,1736368246045,-271.93332033,0.0002121,2]
[348177332,1736368246054,-271.93332033,0.00021314,2]
[348177333,1736368246064,-205.28208979,0.00021365,3]
[348177334,1736368246075,-711.58791021,0.00021365,3]
[348177335,1736368246085,-500.0,0.00021369,3]
[348177336,1736368246094,-500.0,0.00021369,3]
[348177337,1736368246104,-271.93332033,0.00021417,2]
[348177338,1736368246113,-44861.48419672,0.000215,2]
[348179373,1736368324516,57.128979,0.00014988,2]
[348179374,1736368324542,3700.0,0.00014988,2]
[348179375,1736368324571,7960.92359699,0.00014988,2]
[348179376,1736368324798,11718.05257599,0.00014994,2]
[348179377,1736368325114,11718.05257599,0.00014995,2]
[348179378,1736368385575,298.43246666,0.00014989,2]
[348179379,1736368385944,298.43246666,0.00014999,2]
[348179380,1736368386227,298.43246666,0.00014986,2]
[348179381,1736368455689,160.456627,0.00013973,2]
[348179383,1736369135123,-3502.5558197,0.00018409,2]
[348179384,1736369135144,-211.3516201,0.00018434,2]
[348179385,1736369135169,-300.0,0.00018446,2]
[348179386,1736369135192,-1178.71651797,0.00018447,2]
[348179387,1736369225136,-485.37895315,0.00018447,2]
[348179388,1736369234140,-2024.4509365,0.00018447,2]
[348179389,1736369253085,-5368.21650119,0.00018447,2]
[348179390,1736369344383,1324.66289554,0.00015,2]
[348179391,1736369344729,1324.66289554,0.00014991,2]
[348179392,1736369344945,1324.66289554,0.00014999,2]
[348179393,1736369363115,-8411.68479829,0.00018447,2]
[348179394,1736369363136,-201.9344281,0.000189,2]
[348179415,1736369432230,-267.14353978,0.000189,2]
[348179416,1736369432244,-500.0,0.00019178,2]
[348179417,1736369432256,-225.35437006,0.00019344,2]
[348179418,1736369432267,-182.32714222,0.00019345,2]
[348179419,1736369432277,-500.0,0.00019443,3]
[348179420,1736369432288,-300.0,0.00019443,2]
[348179421,1736369432299,-168.26225,0.00019444,3]
[348179422,1736369432314,-331.73775,0.00019444,3]
[348179423,1736369432325,-161.91225,0.00019444,3]
[348179424,1736369432341,-338.08775,0.00019444,3]
[348179425,1736369432352,-500.0,0.00019444,3]
[348179426,1736369432364,-500.0,0.00019444,3]
[348179427,1736369432375,-500.0,0.00019444,3]
[348179428,1736369432386,-152.56661509,0.00019444,3]
[348179429,1736369432396,-500.0,0.00019444,3]
[348179430,1736369432408,-500.0,0.00019444,3]
[348179431,1736369432418,-500.0,0.00019444,3]
[348179432,1736369432427,-500.0,0.00019444,2]
[348179433,1736369432437,-500.0,0.00019444,3]
[348179434,1736369432447,-500.0,0.00019444,3]
[348179435,1736369432458,-158.07068626,0.00019444,3]
[348179436,1736369432469,-500.0,0.00019444,3]
[348179437,1736369432480,-500.0,0.00019444,3]
[348179438,1736369432493,-500.0,0.00019444,3]
[348179439,1736369432504,-500.0,0.00019444,3]
[348179440,1736369432515,-202.38020995,0.00019444,3]
[348179441,1736369432529,-297.61979005,0.00019444,3]
[348179442,1736369432539,-440.58163114,0.00019444,3]
[348179443,1736369432551,-59.41836886,0.00019444,3]
[348179444,1736369432562,-500.0,0.00019444,3]
[348179445,1736369432572,-500.0,0.00019444,3]
[348179446,1736369432583,-501.23049456,0.00019444,3]
[348179447,1736369432593,-500.0,0.00019444,3]
[348179448,1736369432604,-500.0,0.00019444,3]
[348179449,1736369432616,-285.46533658,0.00019444,3]
[348179450,1736369432631,-214.53466342,0.00019444,3]
[348179451,1736369432642,-60.80815009,0.00019444,3]
[348179452,1736369432656,-284.1195,0.00019444,3]
[348179453,1736369432669,-155.07234991,0.00019444,3]
[348179454,1736369432680,-480.7247236,0.00019444,3]
[348179455,1736369432693,-19.2752764,0.00019444,3]
[348179456,1736369432703,-500.0,0.00019444,3]
[348179457,1736369432713,-500.0,0.00019444,3]
[348179458,1736369432724,-200.0,0.00019444,3]
[348179459,1736369432735,-500.0,0.00019444,3]
[348179460,1736369432745,-500.0,0.00019444,3]
[348179461,1736369432755,-500.0,0.00019444,3]
[348179462,1736369432765,-500.0,0.00019444,3]
[348179463,1736369432775,-252.31208516,0.00019444,3]
[348179464,1736369432788,-247.68791484,0.00019444,3]
[348179465,1736369432800,-413.92614075,0.00019444,3]
[348179466,1736369432813,-215.97970667,0.00019444,3]
[348179467,1736369432824,-148.96581165,0.00019444,3]
[348179468,1736369432836,-351.03418835,0.00019444,3]
[348179469,1736369432847,-500.0,0.00019444,3]
[348179470,1736369432858,-502.87092684,0.00019444,3]
[348179471,1736369432869,-503.12449687,0.00019444,3]
[348179472,1736369432879,-318.02126946,0.00019444,3]
[348179473,1736369432889,-500.0,0.00019444,3]
[348179474,1736369432901,-500.0,0.00019444,3]
[348179475,1736369432912,-234.79532985,0.00019444,3]
[348179476,1736369432924,-500.0,0.00019444,3]
[348179477,1736369432935,-500.0,0.00019444,3]
[348179478,1736369432945,-500.0,0.00019444,3]
[348179479,1736369432956,-500.0,0.00019444,3]
[348179480,1736369432968,-500.0,0.00019444,3]
[348179481,1736369433114,-500.0,0.00019444,3]
[348179482,1736369433127,-500.0,0.00019444,3]
[348179483,1736369433137,-500.0,0.00019444,3]
[348179484,1736369433147,-500.0,0.00019444,3]
[348179485,1736369433160,-500.0,0.00019444,3]
[348179486,1736369433170,-500.0,0.00019444,3]
[348179487,1736369433180,-500.0,0.00019444,3]
[348179488,1736369433190,-500.0,0.00019444,3]
[348179489,1736369433200,-500.0,0.00019444,3]
[348179490,1736369433210,-500.0,0.00019444,3]
[348179491,1736369433219,-500.0,0.00019444,3]
[348179492,1736369433229,-500.48872189,0.00019444,3]
[348179493,1736369433240,-500.0,0.00019444,3]
[348179494,1736369433250,-500.0,0.00019444,3]
[348179495,1736369433260,-500.0,0.00019444,3]
[348179496,1736369433269,-500.0,0.00019444,3]
[348179497,1736369433278,-500.0,0.00019444,3]
[348179498,1736369433287,-500.0,0.00019444,3]
[348179499,1736369433297,-500.0,0.00019444,3]
[348179500,1736369433307,-500.0,0.00019444,3]
[348179501,1736369433317,-500.0,0.00019444,3]
[348179502,1736369433327,-500.0,0.00019444,3]
[348179503,1736369433336,-500.0,0.00019444,3]
[348179504,1736369433346,-500.0,0.00019444,3]
[348179505,1736369433356,-500.0,0.00019444,3]
[348179506,1736369433366,-500.0,0.00019444,3]
[348179507,1736369433375,-500.0,0.00019444,3]
[348179508,1736369433384,-500.0,0.00019444,3]
[348179509,1736369433394,-500.0,0.00019444,3]
[348179510,1736369433404,-500.0,0.00019444,3]
[348179511,1736369433414,-500.0,0.00019444,3]
[348179512,1736369433424,-500.0,0.00019444,3]
[348179513,1736369433433,-500.0,0.00019444,3]
[348179514,1736369433443,-500.0,0.00019444,3]
[348179515,1736369433453,-500.0,0.00019444,3]
[348179516,1736369433462,-500.0,0.00019444,3]
[348179517,1736369433472,-500.0,0.00019444,3]
[348179518,1736369433481,-500.0,0.00019444,3]
[348179519,1736369433490,-500.0,0.00019444,3]
[348179520,1736369433500,-500.0,0.00019444,3]
[348179521,1736369433509,-500.0,0.00019444,3]
[348179522,1736369433519,-500.0,0.00019444,3]
[348179523,1736369433528,-500.0,0.00019444,3]
[348179524,1736369433537,-519.74645103,0.00019444,3]
[348179525,1736369433546,-500.0,0.00019444,3]
[348179526,1736369433555,-500.0,0.00019444,3]
[348179527,1736369433565,-500.0,0.00019444,3]
[348179528,1736369433574,-500.0,0.00019444,3]
[348179529,1736369433583,-500.0,0.00019444,3]
[348179530,1736369433593,-500.0,0.00019444,3]
[348179531,1736369433602,-500.0,0.00019444,3]
[348179532,1736369433611,-300.0,0.00019444,3]
[348179533,1736369433620,-500.0,0.00019444,3]
[348179534,1736369433630,-500.0,0.00019444,3]
[348179535,1736369433639,-500.0,0.00019444,2]
[348179536,1736369433649,-500.0,0.00019444,3]
[348179537,1736369433659,-500.0,0.00019444,3]
[348179538,1736369433668,-500.0,0.00019444,3]
[348179539,1736369433679,-500.0,0.00019444,3]
[348179540,1736369433688,-500.0,0.00019444,3]
[348179541,1736369433697,-500.0,0.00019444,3]
[348179542,1736369433707,-500.0,0.00019444,3]
[348179543,1736369433716,-500.0,0.00019444,3]
[348179544,1736369433725,-508.354026,0.00019444,3]
[348179545,1736369433735,-500.0,0.00019444,3]
[348179546,1736369433744,-500.0,0.00019444,3]
[348179547,1736369433755,-500.0,0.00019444,3]
[348179548,1736369433765,-500.0,0.00019444,3]
[348179549,1736369433774,-539.41859522,0.00019444,3]
[348179550,1736369433784,-500.0,0.00019444,3]
[348179551,1736369433793,-500.0,0.00019444,3]
[348179552,1736369433802,-154.46,0.00019444,2]
[348179553,1736369433812,-156.645,0.00019445,2]
[348179554,1736369433821,-500.0,0.00019445,3]
[348179555,1736369433830,-500.0,0.00019445,3]
[348179556,1736369433838,-500.0,0.00019445,3]
[348179557,1736369433847,-500.0,0.00019445,3]
[348179558,1736369433856,-511.76498727,0.00019445,3]
[348179559,1736369433866,-500.0,0.00019445,3]
[348179560,1736369433875,-500.0,0.00019445,3]
[348179561,1736369433885,-500.0,0.00019445,3]
[348179562,1736369433894,-500.0,0.00019445,3]
[348179563,1736369433906,-500.0,0.00019445,3]
[348179564,1736369433916,-500.0,0.00019445,3]
[348179565,1736369433926,-500.0,0.00019445,3]
[348179566,1736369433936,-500.0,0.00019445,3]
[348179567,1736369433946,-500.0,0.00019445,3]
[348179568,1736369433956,-500.0,0.00019445,3]
[348179569,1736369433966,-172.86261087,0.00019445,3]
[348179570,1736369433976,-500.0,0.00019445,3]
[348179571,1736369433986,-500.0,0.00019445,3]
[348179572,1736369433996,-500.0,0.00019445,3]
[348179573,1736369434016,-500.0,0.00019445,3]
[348179574,1736369434027,-500.0,0.00019445,3]
[348179575,1736369434037,-500.0,0.00019445,3]
[348179576,1736369434047,-500.0,0.00019445,3]
[348179577,1736369434057,-500.0,0.00019445,3]
[348179578,1736369434067,-500.0,0.00019445,3]
[348179579,1736369434076,-500.0,0.00019445,3]
[348179580,1736369434087,-500.0,0.00019445,3]
[348179581,1736369434098,-500.0,0.00019445,3]
[348179582,1736369434108,-500.0,0.00019445,3]
[348179583,1736369434119,-500.0,0.00019445,3]
[348179584,1736369434129,-500.0,0.00019445,3]
[348179585,1736369434139,-500.0,0.00019445,3]
[348179586,1736369434152,-500.0,0.00019445,3]
[348179587,1736369434165,-586.87,0.00019445,3]
[348179588,1736369434175,-500.0,0.00019445,3]
[348179589,1736369434185,-500.0,0.00019445,3]
[348179590,1736369434195,-500.0,0.00019445,3]
[348179591,1736369434204,-500.0,0.00019445,3]
[348179592,1736369434214,-500.0,0.00019445,3]
[348179593,1736369434224,-500.0,0.00019445,3]
[348179594,1736369434235,-500.0,0.00019445,3]
[348179595,1736369434244,-500.0,0.00019445,3]
[348179596,1736369434254,-500.0,0.00019445,3]
[348179597,1736369434264,-500.0,0.00019445,3]
[348179598,1736369434274,-500.0,0.00019445,3]
[348179599,1736369434284,-500.0,0.00019445,3]
[348179600,1736369434294,-500.0,0.00019445,3]
[348179601,1736369434303,-500.0,0.00019445,3]
[348179602,1736369434314,-500.0,0.00019445,3]
[348179603,1736369434324,-500.0,0.00019445,3]
[348179604,1736369434334,-500.0,0.00019445,3]
[348179605,1736369434344,-500.0,0.00019445,3]
[348179606,1736369434354,-500.0,0.00019445,3]
[348179607,1736369434364,-500.0,0.00019445,3]
[348179608,1736369434374,-500.0,0.00019445,3]
[348179609,1736369434384,-500.0,0.00019445,3]
[348179610,1736369434394,-500.0,0.00019445,3]
[348179611,1736369434409,-500.0,0.00019445,3]
[348179612,1736369434419,-497.67765565,0.00019445,3]
[348179613,1736369434429,-499.0,0.00019445,2]
[348179614,1736369434438,-611.25,0.00019445,3]
[348179615,1736369434447,-194.08158111,0.00019445,2]
[348179616,1736369434457,-500.0,0.00019445,2]
[348179617,1736369434466,-257.47843821,0.00019445,2]
[348179618,1736369434477,-227.17616184,0.00019445,2]
[348179619,1736369434486,-520.58,0.00019445,3]
[348179620,1736369434496,-500.0,0.00019445,3]
[348179621,1736369434505,-500.0,0.00019445,3]
[348179622,1736369434515,-500.0,0.00019445,3]
[348179623,1736369434526,-477.7655603,0.00019445,3]
[348179624,1736369434537,-500.0,0.00019445,3]
[348179625,1736369434547,-500.0,0.00019445,3]
[348179626,1736369434557,-500.0,0.00019445,3]
[348179627,1736369434566,-500.0,0.00019445,3]
[348179628,1736369434576,-500.0,0.00019445,3]
[348179629,1736369434585,-500.0,0.00019445,3]
[348179630,1736369434595,-500.0,0.00019445,3]
[348179631,1736369434604,-500.0,0.00019445,3]
[348179632,1736369434614,-500.0,0.00019445,3]
[348179633,1736369434623,-500.0,0.00019445,3]
[348179634,1736369434633,-252.58752916,0.00019445,3]
[348179635,1736369434644,-500.0,0.00019445,3]
[348179636,1736369434656,-500.0,0.00019445,3]
[348179637,1736369434665,-500.0,0.00019445,3]
[348179638,1736369434675,-500.0,0.00019445,3]
[348179639,1736369434684,-500.0,0.00019446,3]
[348179640,1736369434693,-500.0,0.00019446,3]
[348179641,1736369434703,-500.0,0.00019446,3]
[348179642,1736369434713,-500.0,0.00019446,3]
[348179643,1736369434722,-500.0,0.00019446,3]
[348179644,1736369434732,-500.0,0.00019446,3]
[348179645,1736369434742,-500.0,0.00019446,3]
[348179646,1736369434751,-500.0,0.00019446,3]
[348179647,1736369434760,-500.0,0.00019446,3]
[348179648,1736369434770,-501.99684553,0.00019446,3]
[348179649,1736369434780,-500.0,0.00019446,3]
[348179650,1736369434789,-500.0,0.00019446,3]
[348179651,1736369434799,-500.0,0.00019446,3]
[348179652,1736369434810,-500.0,0.00019446,3]
[348179653,1736369434819,-500.0,0.00019446,3]
[348179654,1736369434829,-500.0,0.00019446,3]
[348179655,1736369434839,-500.0,0.00019446,3]
[348179656,1736369434848,-266.66009241,0.00019446,3]
[348179657,1736369434858,-500.0,0.00019446,3]
[348179658,1736369434868,-500.0,0.00019446,3]
[348179659,1736369434878,-500.77606557,0.00019446,3]
[348179660,1736369434887,-500.0,0.00019446,3]
[348179661,1736369434896,-500.0,0.00019446,3]
[348179662,1736369434908,-500.0,0.00019446,3]
[348179663,1736369434918,-500.0,0.00019446,3]
[348179664,1736369434928,-500.0,0.00019446,3]
[348179665,1736369434938,-500.0,0.00019446,3]
[348179666,1736369434948,-500.0,0.00019446,3]
[348179667,1736369434957,-500.26633432,0.00019446,3]
[348179668,1736369434967,-207.66247516,0.00019446,3]
[348179669,1736369434977,-500.0,0.00019446,3]
[348179670,1736369434987,-500.0,0.00019446,3]
[348179671,1736369434997,-500.0,0.00019446,3]
[348179672,1736369435007,-500.0,0.00019446,3]
[348179673,1736369435017,-500.0,0.00019446,3]
[348179674,1736369435026,-500.0,0.00019446,3]
[348179675,1736369435037,-500.0,0.00019446,3]
[348179676,1736369435049,-500.0,0.00019446,3]
[348179677,1736369435059,-500.0,0.00019446,3]
[348179678,1736369435070,-500.0,0.00019446,3]
[348179679,1736369435080,-500.0,0.00019446,3]
[348179680,1736369435091,-500.0,0.00019446,3]
[348179681,1736369435102,-500.0,0.00019446,3]
[348179682,1736369435112,-425.47527844,0.00019446,3]
[348179683,1736369435122,-500.0,0.00019446,3]
[348179684,1736369435133,-500.0,0.00019446,3]
[348179685,1736369435143,-500.0,0.00019446,3]
[348179686,1736369435159,-602.14714337,0.00019446,3]
[348179687,1736369435169,-500.0,0.00019446,3]
[348179688,1736369435179,-500.0,0.00019446,3]
[348179689,1736369435189,-500.0,0.00019446,3]
[348179690,1736369435200,-500.0,0.00019446,3]
[348179691,1736369435209,-500.0,0.00019446,3]
[348179692,1736369435219,-500.0,0.00019446,3]
[348179693,1736369435228,-500.0,0.00019446,3]
[348179694,1736369435238,-500.0,0.00019446,3]
[348179695,1736369435248,-428.44822366,0.00019446,3]
[348179696,1736369435258,-500.0,0.00019446,3]
[348179697,1736369435267,-500.0,0.00019446,3]
[348179698,1736369435278,-500.0,0.00019446,3]
[348179699,1736369435287,-500.0,0.00019446,3]
[348179700,1736369435296,-500.0,0.00019446,3]
[348179701,1736369435306,-500.0,0.00019446,3]
[348179702,1736369435315,-500.0,0.00019446,3]
[348179703,1736369435325,-613.46842821,0.00019446,3]
[348179704,1736369435335,-500.0,0.00019446,3]
[348179705,1736369435345,-500.44757115,0.00019446,3]
[348179706,1736369435355,-500.0,0.00019446,3]
[348179707,1736369435365,-500.0,0.00019446,3]
[348179708,1736369435375,-500.0,0.00019446,3]
[348179709,1736369435385,-500.41540438,0.00019446,3]
[348179710,1736369435395,-501.125226,0.00019446,3]
[348179711,1736369435408,-500.8771841,0.00019446,3]
[348179712,1736369435418,-500.0,0.00019446,3]
[348179713,1736369435428,-500.0,0.00019446,3]
[348179714,1736369435437,-500.0,0.00019446,3]
[348179715,1736369435448,-500.0,0.00019446,3]
[348179716,1736369435458,-500.0,0.00019446,3]
[348179717,1736369435468,-500.0,0.00019446,3]
[348179718,1736369435477,-500.0,0.00019446,3]
[348179719,1736369435488,-500.0,0.00019446,3]
[348179720,1736369435498,-500.0,0.00019446,3]
[348179721,1736369435508,-514.94251189,0.00019446,3]
[348179722,1736369435518,-500.0,0.00019446,3]
[348179723,1736369435527,-500.0,0.00019446,3]
[348179724,1736369435537,-438.10246926,0.00019446,3]
[348179725,1736369435546,-500.0,0.00019446,3]
[348179726,1736369435556,-500.45758209,0.00019446,3]
[348179727,1736369435566,-500.0,0.00019446,3]
[348179728,1736369435576,-500.0,0.00019446,3]
[348179729,1736369435586,-500.0,0.00019446,3]
[348179730,1736369435597,-500.0,0.00019446,3]
[348179731,1736369435607,-500.0,0.00019446,3]
[348179732,1736369435616,-500.0,0.00019446,3]
[348179733,1736369435626,-500.0,0.00019446,3]
[348179734,1736369435635,-500.0,0.00019446,3]
[348179735,1736369435645,-500.0,0.00019446,3]
[348179736,1736369435657,-500.0,0.00019446,3]
[348179737,1736369435667,-500.0,0.00019446,3]
[348179738,1736369435676,-500.0,0.00019446,3]
[348179739,1736369435686,-500.0,0.00019446,3]
[348179740,1736369435696,-500.0,0.00019446,3]
[348179741,1736369435705,-500.0,0.00019446,3]
[348179742,1736369435715,-500.0,0.00019446,3]
[348179743,1736369435724,-500.0,0.00019446,3]
[348179744,1736369435734,-500.0,0.00019446,3]
[348179745,1736369435743,-500.0,0.00019446,3]
[348179746,1736369435752,-638.61,0.00019446,3]
[348179747,1736369435761,-500.0,0.00019446,3]
[348179748,1736369435771,-500.0,0.00019446,3]
[348179749,1736369435780,-500.0,0.00019446,3]
[348179750,1736369435789,-500.0,0.00019446,3]
[348179751,1736369435798,-500.0,0.00019446,3]
[348179752,1736369435807,-500.0,0.00019446,3]
[348179753,1736369435816,-503.0409126,0.00019446,3]
[348179754,1736369435825,-500.0,0.00019446,3]
[348179755,1736369435834,-500.0,0.00019446,3]
[348179756,1736369435843,-500.0,0.00019446,3]
[348179757,1736369435853,-500.0,0.00019446,3]
[348179758,1736369435959,-500.0,0.00019446,3]
[348179759,1736369435969,-500.0,0.00019446,3]
[348179760,1736369435979,-500.0,0.00019446,3]
[348179761,1736369435988,-500.0,0.00019446,3]
[348179762,1736369435998,-500.0,0.00019446,3]
[348179763,1736369436008,-500.0,0.00019446,3]
[348179764,1736369436018,-500.0,0.00019446,3]
[348179765,1736369436027,-1000.0,0.00019446,3]
[348179766,1736369436037,-500.0,0.00019446,3]
[348179767,1736369436047,-500.0,0.00019446,3]
[348179768,1736369436057,-500.0,0.00019446,3]
[348179769,1736369436066,-500.0,0.00019446,3]
[348179770,1736369436076,-500.0,0.00019446,3]
[348179771,1736369436085,-580.62,0.00019446,3]
[348179772,1736369436095,-500.0,0.00019446,3]
[348179773,1736369436105,-500.0,0.00019446,2]
[348179774,1736369436114,-500.0,0.00019446,3]
[348179775,1736369436124,-500.0,0.00019446,3]
[348179776,1736369436133,-500.0,0.00019446,3]
[348179777,1736369436143,-500.0,0.00019446,3]
[348179778,1736369436155,-500.0,0.00019446,3]
[348179779,1736369436169,-593.86953685,0.00019446,3]
[348179780,1736369436179,-500.0,0.00019446,3]
[348179781,1736369436188,-500.0,0.00019446,3]
[348179782,1736369436198,-500.0,0.00019446,3]
[348179783,1736369436209,-500.0,0.00019446,3]
[348179784,1736369436218,-500.0,0.00019446,3]
[348179785,1736369436228,-500.0,0.00019446,3]
[348179786,1736369436239,-500.0,0.00019446,3]
[348179787,1736369436248,-500.0,0.00019446,3]
[348179788,1736369436258,-500.0,0.00019446,3]
[348179789,1736369436267,-500.0,0.00019446,3]
[348179790,1736369436276,-500.0,0.00019446,3]
[348179791,1736369436285,-500.0,0.00019446,3]
[348179792,1736369436295,-500.0,0.00019446,3]
[348179793,1736369436304,-500.0,0.00019446,3]
[348179794,1736369436313,-500.0,0.00019446,3]
[348179795,1736369436323,-500.0,0.00019446,3]
[348179796,1736369436332,-500.0,0.00019446,3]
[348179797,1736369436342,-500.0,0.00019446,3]
[348179798,1736369436351,-500.0,0.00019446,3]
[348179799,1736369436361,-500.0,0.00019446,3]
[348179800,1736369436370,-500.0,0.00019446,3]
[348179801,1736369436381,-500.0,0.00019446,3]
[348179802,1736369436391,-500.0,0.00019446,3]
[348179803,1736369436401,-500.0,0.00019446,3]
[348179804,1736369436410,-500.0,0.00019446,3]
[348179805,1736369436419,-500.0,0.00019446,3]
[348179806,1736369436429,-500.0,0.00019446,3]
[348179807,1736369436439,-500.0,0.00019446,3]
[348179808,1736369436449,-500.0,0.00019446,3]
[348179809,1736369436459,-500.0,0.00019446,3]
[348179810,1736369436468,-500.0,0.00019446,3]
[348179811,1736369436478,-150.43686423,0.00019446,3]
[348179812,1736369436488,-500.0,0.00019446,3]
[348179813,1736369436497,-500.0,0.00019446,3]
[348179814,1736369436507,-500.0,0.00019446,3]
[348179815,1736369436517,-500.0,0.00019446,3]
[348179816,1736369436526,-500.0,0.00019446,3]
[348179817,1736369436536,-569.57,0.00019446,3]
[348179818,1736369436545,-171.200819,0.00019446,2]
[348179819,1736369436555,-224.09,0.00019446,3]
[348179820,1736369436565,-500.24047302,0.00019447,3]
[348179821,1736369436575,-320.79362068,0.00019447,3]
[348179822,1736369436584,-500.81546027,0.00019447,3]
[348179823,1736369436594,-427.42019523,0.00019447,3]
[348179824,1736369436603,-502.70866287,0.00019447,3]
[348179825,1736369436613,-500.0,0.00019447,3]
[348179826,1736369436622,-500.0,0.00019447,3]
[348179827,1736369436632,-501.58259512,0.00019447,3]
[348179828,1736369436641,-500.0,0.00019447,3]
[348179829,1736369436651,-500.0,0.00019447,3]
[348179830,1736369436661,-500.0,0.00019447,3]
[348179831,1736369436670,-500.0,0.00019447,3]
[348179832,1736369436680,-500.0,0.00019447,3]
[348179833,1736369436689,-500.0,0.00019447,3]
[348179834,1736369436698,-500.0,0.00019447,3]
[348179835,1736369436708,-500.0,0.00019447,3]
[348179836,1736369436718,-500.0,0.00019447,3]
[348179837,1736369436727,-500.0,0.00019447,3]
[348179838,1736369436737,-500.0,0.00019447,3]
[348179839,1736369436746,-500.0,0.00019447,3]
[348179840,1736369436755,-509.16917601,0.00019447,3]
[348179841,1736369436765,-501.08949703,0.00019447,3]
[348179842,1736369436774,-500.0,0.00019447,3]
[348179843,1736369436783,-500.50647208,0.00019447,3]
[348179844,1736369436793,-153.61473118,0.00019447,3]
[348179845,1736369436803,-500.45842542,0.00019447,3]
[348179846,1736369436812,-564.94600583,0.00019447,3]
[348179847,1736369436822,-498.80375982,0.00019447,3]
[348179848,1736369436831,-500.0,0.00019447,3]
[348179849,1736369436840,-500.0,0.00019447,3]
[348179850,1736369436850,-500.0,0.00019447,3]
[348179851,1736369436860,-500.0,0.00019447,3]
[348179852,1736369436869,-250.25334083,0.00019447,3]
[348179853,1736369436879,-500.0,0.00019449,3]
[348179854,1736369436889,-500.0,0.00019449,3]
[348179855,1736369436898,-500.0,0.00019449,3]
[348179856,1736369436907,-267.39123766,0.00019473,2]
[348179857,1736369436917,-500.0,0.00019473,2]
[348179858,1736369436927,-500.0,0.00019473,2]
[348179859,1736369436936,-501.01795844,0.00019473,2]
[348179860,1736369436946,-611.72430887,0.00019473,2]
[348179861,1736369436955,-500.0,0.00019473,2]
[348179862,1736369436965,-500.0,0.00019473,2]
[348179863,1736369436974,-500.0,0.00019473,2]
[348179864,1736369436984,-500.63603319,0.00019473,2]
[348179865,1736369436994,-197.93,0.00019717,3]
[348179866,1736369437003,-500.0,0.00019718,3]
[348179867,1736369437012,-225.76255184,0.00019718,3]
[348179868,1736369437022,-232.31,0.00019719,3]
[348179869,1736369437031,-160.72,0.00019719,3]
[348179870,1736369437041,-611.25,0.00019719,3]
[348179871,1736369437051,-258.07,0.0001972,3]
[348179872,1736369437060,-500.0,0.0001972,3]
[348179873,1736369437070,-355.83536237,0.0001972,3]
[348179874,1736369437079,-500.0,0.00019723,3]
[348179875,1736369437088,-500.0,0.00019725,2]
[348179876,1736369437097,-500.0,0.00019725,3]
[348179877,1736369437106,-150.0,0.00019807,2]
[348179878,1736369437116,-289.1959695,0.00019899,5]
[348179879,1736369437125,-4588.82404359,0.000199,5]
[348179880,1736369437135,-359.295985,0.000199,2]
[348179881,1736369437144,-167.510647,0.00019987,2]
[348179882,1736369437156,-232.63,0.00019992,3]